bitfinex-derivatives/quotes_ETHF0:USTF0_20260310
["timestamp","ask_amount","ask_price","bid_price","bid_amount"]
[1773156695908,0.75839794,2069.9,2069.2,0.72874818]
[1773156696107,6.328,2070.0,2069.2,0.72874818]
[1773156696310,0.75839794,2069.9,2069.2,0.72874818]
[1773156696814,6.328,2070.0,2069.2,0.72874818]
[1773156697403,6.328,2070.0,2069.2,0.97033818]
[1773156697606,6.328,2070.4,2069.3,0.72524694]
[1773156697806,0.75839794,2070.3,2069.3,0.72524694]
[1773156699512,0.75839794,2069.9,2069.2,0.00350124]
[1773156699709,0.75839794,2069.7,2068.9,0.72524694]
[1773156700403,6.328,2069.8,2068.9,0.72524694]
[1773156700604,0.75839794,2069.7,2068.9,0.73025007]
[1773156701109,6.328,2069.8,2068.9,0.73025007]
[1773156701510,0.75839794,2070.0,2069.1,0.72524694]
[1773156701710,7.08739794,2070.2,2069.1,0.72524694]
[1773156702414,0.75839794,2070.1,2069.1,0.72524694]
[1773156705823,6.329,2070.2,2069.3,0.72524694]
[1773156706715,6.329,2070.2,2069.4,1.46728792]
[1773156707424,7.76134739,2070.2,2069.4,1.46728792]
[1773156707624,6.329,2070.2,2069.4,1.46728792]
[1773156707814,1.43633735,2070.9,2069.8,1.46728792]
[1773156708019,1.43633735,2070.9,2070.0,1.46728792]
[1773156708519,1.43633735,2070.9,2069.8,1.46728792]
[1773156709125,1.43633735,2070.9,2069.9,1.46728792]
[1773156709422,0.00398996,2070.9,2069.9,1.46728792]
[1773156710124,1.54147891,2070.9,2069.9,1.46728792]
[1773156711123,0.00398996,2070.9,2069.9,5.3884846]
[1773156711320,6.329,2071.4,2070.3,1.53000728]
[1773156711521,7.86648895,2071.4,2070.3,1.53000728]
[1773156712227,7.86648895,2071.4,2070.4,1.53000728]
[1773156712425,0.00541601,2071.4,2070.6,1.53000728]
[1773156712623,0.24126,2072.2,2070.6,1.53000728]
[1773156712624,1.53748895,2072.2,2070.8,1.53000728]
[1773156712821,1.53748895,2072.2,2071.0,1.53000728]
[1773156713326,1.53748895,2072.2,2071.1,1.53000728]
[1773156713829,1.53748895,2072.2,2070.8,1.53000728]
[1773156713830,1.53748895,2071.9,2070.8,1.53000728]
[1773156714128,1.53748895,2071.7,2070.5,1.53000728]
[1773156714422,1.53748895,2071.5,2070.5,1.53000728]
[1773156717924,6.5703,2071.8,2070.5,1.53000728]
[1773156717925,1.53748895,2071.3,2070.5,1.53000728]
[1773156718127,1.53748895,2071.3,2070.4,0.00416011]
[1773156718527,7.86448895,2071.3,2070.4,0.00416011]
[1773156718727,1.53748895,2071.2,2070.4,1.53416739]
[1773156720731,1.53748895,2071.2,2070.4,0.00416011]
[1773156721230,1.53748895,2071.2,2070.4,1.53416739]
[1773156722633,1.53748895,2071.2,2070.4,0.00416011]
[1773156722929,0.24145,2070.5,2069.6,1.53000728]
[1773156723127,1.53748895,2070.3,2069.4,1.53000728]
[1773156723726,1.54228087,2070.3,2069.4,1.53474118]
[1773156724732,0.00479192,2070.3,2069.4,1.53474118]
[1773156725232,1.54228087,2070.3,2069.4,1.53474118]
[1773156729728,0.00479192,2070.3,2069.4,1.53474118]
[1773156729932,1.53748895,2070.7,2069.5,1.53000728]
[1773156730334,1.53748895,2070.3,2069.5,1.53000728]
[1773156730937,1.54095829,2070.3,2069.5,1.53000728]
[1773156731539,1.53748895,2070.2,2069.5,1.53000728]
[1773156732341,6.33146934,2070.3,2069.5,1.53000728]
[1773156732736,1.53748895,2070.2,2069.5,1.53000728]
[1773156734643,1.53748895,2070.2,2069.4,0.0047339]
[1773156735040,1.53748895,2070.0,2069.1,1.53000728]
[1773156735841,1.53748895,2070.0,2068.9,1.53000728]
[1773156736140,1.53748895,2070.0,2068.9,1.53448612]
[1773156737244,1.53748895,2069.5,2068.6,1.53000728]
[1773156737438,1.53748895,2069.2,2068.4,3.92119668]
[1773156737635,1.53748895,2069.2,2068.0,1.53000728]
[1773156737845,1.53748895,2068.9,2068.0,1.53000728]
[1773156738044,1.53748895,2068.7,2068.0,1.53000728]
[1773156738241,1.53748895,2068.6,2068.0,0.0046442]
[1773156738546,1.53748895,2068.6,2067.8,1.53000728]
[1773156739139,1.45651161,2068.3,2067.6,1.53000728]
[1773156739346,1.45651161,2068.5,2067.6,1.53000728]
[1773156739645,1.45651161,2068.5,2067.6,1.53504137]
[1773156740743,0.00424268,2068.7,2067.8,1.42144539]
[1773156741844,7.78751161,2069.5,2068.0,1.42144539]
[1773156742144,1.45651161,2069.1,2068.1,1.42144539]
[1773156742345,6.331,2069.0,2068.1,1.42144539]
[1773156742545,1.45651161,2068.9,2068.1,1.42144539]
[1773156743450,6.3364508,2069.0,2068.1,1.42144539]
[1773156743648,1.45651161,2068.9,2068.1,1.42144539]
[1773156744251,6.3364508,2069.0,2068.1,1.42144539]
[1773156744450,1.45651161,2068.9,2068.1,1.42144539]
[1773156744649,6.3364508,2069.0,2068.1,1.42144539]
[1773156745853,0.0054508,2069.0,2068.1,1.42144539]
[1773156746050,1.45651161,2069.4,2068.3,1.42144539]
[1773156746254,1.45651161,2069.7,2068.5,1.42144539]
[1773156747348,1.46141245,2069.7,2068.5,1.42144539]
[1773156749155,1.45651161,2069.1,2068.2,1.42144539]
[1773156749354,1.45651161,2068.9,2068.2,1.42144539]
[1773156749557,6.331,2069.0,2068.2,1.42144539]
[1773156749748,7.78751161,2069.0,2068.2,1.42144539]
[1773156750150,6.33590084,2069.7,2068.3,1.42144539]
[1773156750351,1.45651161,2069.6,2068.5,1.42144539]
[1773156751452,0.00490084,2069.7,2068.9,1.42144539]
[1773156752455,1.46141245,2069.7,2068.9,1.42144539]
[1773156753362,0.00490084,2069.7,2068.9,1.42144539]
[1773156753962,6.18094,2070.6,2068.7,0.24165]
[1773156753963,1.45651161,2070.2,2069.3,1.42144539]
[1773156755062,1.45651161,2070.2,2069.3,1.42617226]
[1773156755063,1.46112153,2070.2,2069.3,1.42617226]
[1773156756659,1.45651161,2069.9,2068.9,1.42144539]
[1773156756961,1.45651161,2069.7,2068.9,1.42144539]
[1773156757952,1.45651161,2069.7,2068.9,1.42647845]
[1773156758156,6.33,2069.8,2068.9,1.42647845]
[1773156758353,7.78651161,2069.8,2068.9,1.42647845]
[1773156758965,1.46112153,2070.2,2069.1,1.42144539]
[1773156759161,1.46112153,2070.2,2069.3,1.42144539]
[1773156760561,0.00460992,2070.2,2069.5,1.42144539]
[1773156760766,1.45651161,2071.1,2069.8,1.42144539]
[1773156760967,1.45651161,2071.1,2069.9,1.42144539]
[1773156761663,1.45651161,2071.1,2070.0,1.42144539]
[1773156761856,1.46273315,2071.1,2070.2,1.42144539]
[1773156762767,8.453,2072.2,2070.2,1.42144539]
[1773156762768,1.45651161,2071.6,2070.4,1.42144539]
[1773156763863,1.46068449,2071.6,2070.4,1.42604226]
[1773156765064,1.46068449,2071.6,2070.5,1.42144539]
[1773156765963,1.45651161,2071.4,2070.4,0.00459687]
[1773156766169,1.45651161,2071.2,2070.4,1.42604226]
[1773156766865,1.50188572,2071.4,2070.4,1.42604226]
[1773156767869,1.50188572,2071.3,2070.4,1.42604226]
[1773156769169,7.82988572,2071.5,2070.4,1.42604226]
[1773156769667,7.82988572,2071.5,2070.5,0.24145]
[1773156769869,1.4129059,2072.2,2071.1,1.4788808]
[1773156770069,1.4129059,2072.2,2071.2,1.4788808]
[1773156770465,1.4129059,2072.9,2071.5,1.4788808]
[1773156770864,1.41737149,2072.9,2071.7,1.4788808]
[1773156771070,1.41737149,2072.9,2071.8,1.4788808]
[1773156771071,0.00446559,2072.9,2071.8,1.4788808]
[1773156771471,0.00446559,2072.9,2072.1,1.4788808]
[1773156771772,1.41737149,2072.9,2072.1,1.48275152]
[1773156772163,0.00446559,2072.9,2072.1,1.48275152]
[1773156773374,0.00446559,2072.9,2072.1,7.80975152]
[1773156773575,0.00446559,2072.9,2072.2,1.4788808]
[1773156774077,1.41737149,2072.9,2072.1,1.48275152]
[1773156775569,1.41737149,2072.9,2072.1,0.00387072]
[1773156775771,1.41737149,2072.9,2072.1,1.48275152]
[1773156776076,0.00446559,2072.9,2072.1,1.48275152]
[1773156777169,1.00446559,2072.9,2072.1,1.48275152]
[1773156778171,1.4129059,2073.7,2072.5,1.4788808]
[1773156778572,1.4129059,2073.7,2072.7,1.4788808]
[1773156779072,1.41828972,2073.7,2072.7,1.4788808]
[1773156780276,1.4129059,2073.5,2072.5,1.4788808]
[1773156780781,1.4129059,2074.3,2073.1,1.4788808]
[1773156780975,1.4129059,2074.3,2073.3,1.4788808]
[1773156781974,1.41868401,2074.3,2073.3,1.4788808]
[1773156782176,0.00577811,2074.3,2073.3,1.4788808]
[1773156782372,1.4129059,2075.3,2074.0,1.4788808]
[1773156782573,1.4129059,2075.3,2074.2,1.4788808]
[1773156782878,1.4129059,2075.9,2074.7,1.4788808]
[1773156783082,1.6537459,2075.8,2074.9,1.4788808]
[1773156783277,5.92428,2075.9,2074.2,1.4788808]
[1773156783278,1.4129059,2075.5,2074.2,1.4788808]
[1773156783785,1.4129059,2075.1,2074.2,1.48251841]
[1773156784082,1.4129059,2075.4,2074.2,1.48251841]
[1773156784381,0.00381888,2075.5,2074.3,4.27935845]
[1773156784587,1.4129059,2076.0,2074.4,1.4788808]
[1773156784784,7.3314759,2077.9,2075.7,1.4788808]
[1773156784986,1.4129059,2078.2,2076.5,1.4788808]
[1773156785179,1.4129059,2078.0,2076.5,1.4788808]
[1773156785385,1.4129059,2077.7,2076.5,1.4788808]
[1773156785582,0.0052499,2077.7,2076.6,1.4788808]
[1773156785786,7.7339059,2079.5,2077.6,1.4788808]
[1773156786088,1.4129059,2079.1,2077.9,1.4788808]
[1773156786288,1.4129059,2078.3,2077.4,1.4788808]
[1773156786586,7.3305959,2078.2,2077.4,1.4788808]
[1773156786784,0.00595973,2078.2,2077.4,1.4788808]
[1773156787190,1.4129059,2079.2,2077.5,1.4788808]
[1773156787492,1.4129059,2079.5,2077.8,1.4788808]
[1773156787691,1.4129059,2078.7,2077.8,1.4788808]
[1773156788083,1.4129059,2079.0,2077.8,1.4788808]
[1773156788391,1.4180526,2079.0,2077.8,1.4788808]
[1773156788893,1.4129059,2078.4,2077.2,1.4788808]
[1773156789091,6.317,2078.7,2077.2,1.4788808]
[1773156789393,1.4129059,2078.7,2077.4,1.4788808]
[1773156789991,1.4180526,2079.0,2077.4,1.4788808]
[1773156790190,1.4129059,2078.8,2077.4,1.4788808]
[1773156790591,1.4129059,2078.2,2077.0,1.4788808]
[1773156790791,5.91747,2078.3,2077.0,1.4788808]
[1773156790792,1.4129059,2077.8,2077.0,1.4788808]
[1773156791090,1.4129059,2077.8,2076.6,1.4788808]
[1773156791689,1.4129059,2077.6,2076.5,1.48484862]
[1773156792082,6.314,2077.7,2076.5,1.48484862]
[1773156792287,7.7269059,2077.7,2076.5,1.48484862]
[1773156792490,1.4129059,2077.6,2076.5,0.00596782]
[1773156793090,1.4129059,2077.6,2076.5,1.48484862]
[1773156793384,1.4129059,2077.9,2076.5,1.48484862]
[1773156793584,1.4129059,2078.2,2076.8,1.4788808]
[1773156793787,6.312,2078.5,2076.8,1.4788808]
[1773156793986,1.4129059,2078.3,2076.8,1.4788808]
[1773156794190,1.4129059,2078.1,2076.8,1.4788808]
[1773156794790,6.312,2078.0,2076.8,1.4788808]
[1773156794991,6.312,2078.0,2076.5,0.00596782]
[1773156794992,1.4129059,2077.7,2076.5,1.48484862]
[1773156795397,1.4129059,2077.5,2076.5,1.48484862]
[1773156795593,1.4129059,2077.3,2076.2,1.4788808]
[1773156795894,1.4129059,2077.3,2075.5,1.4788808]
[1773156796089,1.4129059,2076.9,2075.5,1.4788808]
[1773156796292,1.4129059,2076.7,2075.5,1.4788808]
[1773156796497,1.4129059,2076.5,2075.5,1.48448843]
[1773156796890,1.4129059,2076.3,2075.2,1.4788808]
[1773156797895,1.4129059,2076.3,2075.2,1.48457389]
[1773156798693,6.311,2076.2,2075.2,1.48457389]
[1773156799498,1.5297698,2076.1,2075.2,0.00569309]
[1773156800694,1.5297698,2076.1,2074.8,1.63350131]
[1773156801195,6.311,2076.0,2074.8,1.63350131]
[1773156801492,6.311,2076.0,2074.1,12.48139]
[1773156801493,1.5297698,2075.7,2074.5,1.63350131]
[1773156801694,1.53555586,2075.7,2074.5,1.6389096]
[1773156802192,0.00578606,2075.7,2074.5,1.6389096]
[1773156803497,0.00578606,2075.7,2074.9,1.63350131]
[1773156804091,6.311,2075.8,2074.9,1.63350131]
[1773156804294,6.311,2076.3,2075.1,1.63350131]
[1773156804490,6.312,2076.5,2075.3,1.63350131]
[1773156804695,6.312,2076.4,2075.3,1.63350131]
[1773156805094,6.31540694,2076.4,2075.3,1.63350131]
[1773156805297,1.5297698,2076.3,2075.3,1.63350131]
[1773156805596,6.31540694,2076.4,2075.3,1.63350131]
[1773156805996,1.5297698,2076.3,2075.3,1.63350131]
[1773156806193,0.24078,2076.2,2075.3,1.63350131]
[1773156806505,1.5297698,2076.1,2075.3,1.63350131]
[1773156806996,1.5297698,2075.9,2074.6,1.63350131]
[1773156807397,6.312,2075.8,2074.6,1.63350131]
[1773156807598,6.311,2076.2,2075.0,1.63350131]
[1773156807898,1.5297698,2076.1,2075.0,1.63350131]
[1773156808099,6.311,2076.2,2075.0,1.63350131]
[1773156808300,6.31440694,2076.4,2075.2,1.63350131]
[1773156808605,6.31440694,2076.4,2075.4,1.63350131]
[1773156809898,6.312,2077.0,2075.8,1.63350131]
[1773156810102,7.8417698,2077.0,2075.8,1.63350131]
[1773156810504,1.5297698,2076.9,2075.8,1.63350131]
[1773156810894,1.53316975,2076.9,2075.8,1.63350131]
[1773156812801,0.00339995,2076.9,2076.0,1.63350131]
[1773156812996,6.311,2077.4,2076.2,1.63350131]
[1773156813202,7.61750173,2077.5,2076.4,1.63350131]
[1773156813700,1.5297698,2077.4,2076.4,1.63350131]
[1773156813906,1.53593541,2077.4,2076.4,1.63931703]
[1773156814402,0.00616561,2077.4,2076.4,1.63931703]
[1773156816106,1.53593541,2077.4,2076.4,1.63931703]
[1773156817305,1.53593541,2077.4,2076.4,0.00581572]
[1773156817502,1.5297698,2077.0,2076.1,1.63350131]
[1773156817702,7.8397698,2076.9,2076.1,1.63350131]
[1773156818306,6.31,2077.0,2076.1,1.63350131]
[1773156818500,1.5297698,2076.9,2076.1,1.63931736]
[1773156818896,6.31,2077.0,2076.1,1.63931736]
[1773156819201,0.00616561,2077.4,2076.1,1.63931736]
[1773156819699,0.00616561,2077.4,2076.3,1.63350131]
[1773156819901,1.53593541,2077.4,2076.3,1.63350131]
[1773156821495,1.5297698,2077.0,2076.1,0.00581605]
[1773156821701,1.5297698,2076.8,2076.1,0.00581605]
[1773156821902,1.5297698,2076.4,2075.7,1.63350131]
[1773156822102,1.5297698,2076.4,2075.5,1.63350131]
[1773156822304,6.309,2076.7,2075.5,1.63350131]
[1773156822901,6.309,2076.7,2075.5,1.6395543]
[1773156823203,1.5297698,2076.9,2075.7,1.63350131]
[1773156823403,6.309,2077.1,2076.1,1.63350131]
[1773156824802,1.5297698,2077.0,2076.1,1.63350131]
[1773156825008,1.7704598,2077.0,2076.1,1.63350131]
[1773156825203,1.7704598,2077.0,2075.8,5.43370738]
[1773156825406,1.5297698,2077.0,2075.9,1.63350131]
[1773156826202,0.00616561,2077.4,2075.9,1.63350131]
[1773156826405,1.5297698,2077.3,2075.9,1.87431131]
[1773156826607,0.00616561,2077.4,2075.9,1.87431131]
[1773156826608,7.82528203,2077.2,2076.0,1.58896245]
[1773156827309,7.82528203,2077.2,2076.1,1.58896245]
[1773156827511,6.309,2077.2,2076.1,1.58896245]
[1773156827900,0.00616561,2077.4,2076.3,1.58896245]
[1773156828114,1.51628203,2078.0,2076.7,1.58896245]
[1773156829002,1.51628203,2077.8,2076.7,1.58896245]
[1773156829709,1.58145046,2078.0,2076.9,1.47296186]
[1773156829909,6.31493055,2078.0,2077.1,1.47296186]
[1773156830110,6.31493055,2078.0,2077.1,1.47664073]
[1773156830507,0.00593055,2078.0,2077.3,1.47296186]
[1773156832714,1.57551991,2077.8,2077.1,0.00367887]
[1773156833104,1.57551991,2077.8,2076.8,1.47296186]
[1773156833313,1.57551991,2077.8,2076.3,5.72267795]
[1773156833314,1.57551991,2077.4,2076.2,5.27316793]
[1773156833615,1.57551991,2077.2,2076.2,1.47296186]
[1773156834015,1.57551991,2077.2,2075.9,10.34901607]
[1773156834016,1.57038771,2077.0,2075.9,3.80020607]
[1773156834314,1.57038771,2077.0,2075.9,0.00561753]
[1773156834514,1.57038771,2076.9,2075.9,1.47857939]
[1773156834811,6.308,2076.8,2075.9,1.47857939]
[1773156835116,1.56473151,2076.7,2075.9,0.00561753]
[1773156835712,6.308,2076.6,2075.9,1.47857939]
[1773156836515,1.55902709,2076.9,2075.9,1.47857939]
[1773156836717,6.308,2077.0,2075.9,1.47857939]
[1773156837210,6.308,2077.0,2076.0,1.47296186]
[1773156837910,7.82581107,2077.1,2076.0,1.47296186]
[1773156838215,7.82581107,2077.1,2076.1,1.47296186]
[1773156838417,6.308,2077.1,2076.1,1.47296186]
[1773156839314,1.75287561,2077.0,2075.9,5.38163121]
[1773156839516,1.75287561,2077.0,2075.9,1.47857939]
[1773156839712,1.75287561,2077.0,2075.9,0.00561753]
[1773156839917,1.5078616,2076.7,2075.9,0.00561753]
[1773156840112,1.5078616,2076.5,2075.9,0.00561753]
[1773156840322,1.50224407,2076.3,2074.9,5.72267795]
[1773156840613,1.49690752,2075.7,2074.5,3.91038187]
[1773156840811,1.49690752,2075.5,2074.5,1.47296186]
[1773156841015,6.308,2075.5,2074.6,1.47296186]
[1773156841210,6.308,2075.5,2074.3,1.47296186]
[1773156841211,0.24089,2075.3,2074.3,1.47296186]
[1773156841414,0.24089,2075.3,2074.1,3.91038187]
[1773156841415,1.49699102,2075.2,2074.1,1.47296186]
[1773156841610,1.49699102,2075.2,2073.9,1.47296186]
[1773156841816,1.48754764,2075.0,2073.9,1.47296186]
[1773156842011,1.50424084,2074.8,2073.9,1.47296186]
[1773156842215,1.50424084,2074.8,2073.6,1.47296186]
[1773156842412,1.50424084,2074.6,2073.6,1.47688227]
[1773156842613,1.50424084,2074.6,2073.6,0.00392041]
[1773156842817,0.00591468,2074.8,2073.6,0.00392041]
[1773156842818,6.309,2074.5,2073.6,1.47688227]
[1773156843922,1.43974322,2074.4,2073.6,1.47688227]
[1773156844519,1.43974322,2074.4,2073.3,1.47296186]
[1773156845218,6.31,2074.4,2073.3,1.47296186]
[1773156845519,6.31,2074.4,2073.3,1.47637255]
[1773156845815,6.311,2074.7,2073.3,1.47637255]
[1773156846220,1.42620885,2074.6,2073.3,1.47637255]
[1773156847218,6.311,2074.7,2073.3,1.47637255]
[1773156847618,0.00591468,2074.8,2073.3,1.47637255]
[1773156847923,7.72687121,2074.7,2073.3,1.47637255]
[1773156848318,0.00591468,2074.8,2073.3,7.64908255]
[1773156848516,6.31791468,2074.8,2073.7,1.47296186]
[1773156848817,1.44137933,2074.7,2073.7,1.47296186]
[1773156849421,0.00591468,2074.8,2073.7,1.47296186]
[1773156849623,6.313,2074.7,2073.7,1.47296186]
[1773156850229,7.76731654,2074.7,2073.7,1.47296186]
[1773156850518,1.45431654,2074.4,2073.3,0.00341069]
[1773156850718,6.1693,2074.5,2072.4,1.47296186]
[1773156850719,1.44516285,2073.7,2072.4,1.47296186]
[1773156850923,1.44523111,2073.5,2072.4,1.47296186]
[1773156851320,1.44523111,2073.5,2071.7,0.24131]
[1773156851517,1.44523111,2073.5,2071.8,1.47296186]
[1773156851723,1.44523111,2073.5,2071.8,1.47718546]
[1773156852021,1.45882717,2073.4,2071.8,1.47718546]
[1773156853125,1.45311467,2073.2,2071.8,1.47718546]
[1773156853429,1.45311467,2073.0,2071.8,1.47718546]
[1773156855422,6.316,2072.9,2071.8,1.47718546]
[1773156855924,0.00387948,2073.2,2072.0,1.47296186]
[1773156856320,6.31987948,2073.2,2072.0,1.47296186]
[1773156856522,1.47170277,2073.1,2072.0,1.47296186]
[1773156856924,6.31987948,2073.2,2072.0,1.47296186]
[1773156857328,0.00387948,2073.2,2072.0,1.47296186]
[1773156857627,6.32087948,2073.2,2072.0,1.47296186]
[1773156858327,1.52712215,2073.1,2072.0,1.47296186]
[1773156858927,6.32087948,2073.2,2072.0,1.47296186]
[1773156859132,1.52118551,2073.1,2072.0,1.47296186]
[1773156860630,1.52118551,2073.1,2071.8,1.37872963]
[1773156861335,6.318,2073.0,2071.8,1.37872963]
[1773156861830,6.318,2073.0,2071.8,1.62001963]
[1773156862035,7.72094039,2073.2,2071.8,1.62001963]
[1773156862428,0.00387948,2073.2,2072.3,1.37450603]
[1773156862630,1.40294039,2073.2,2072.3,1.37450603]
[1773156863538,0.00387948,2073.2,2072.3,1.37450603]
[1773156864434,6.319,2073.6,2072.5,1.37450603]
[1773156864633,1.39906091,2073.4,2072.5,1.37450603]
[1773156865434,1.40416782,2073.4,2072.5,1.37450603]
[1773156866035,1.40416782,2073.4,2071.9,40.8]
[1773156866036,1.39906091,2073.2,2071.8,1.37872963]
[1773156866234,1.39906091,2073.0,2071.8,0.0042236]
[1773156866438,1.39906091,2072.8,2071.8,0.0042236]
[1773156868243,7.71806091,2072.7,2071.8,1.37872963]
[1773156868433,7.71806091,2073.1,2072.0,1.37450603]
[1773156868637,1.39906091,2073.0,2072.0,1.37450603]
[1773156869438,6.32,2073.1,2072.0,1.37450603]
[1773156869738,1.39906091,2073.0,2072.0,1.37450603]
[1773156870740,6.32,2073.2,2072.2,1.37450603]
[1773156870936,1.39906091,2073.1,2072.2,1.37450603]
[1773156871337,6.32,2073.2,2072.2,1.37450603]
[1773156871539,7.71906091,2073.2,2072.2,1.37450603]
[1773156871934,1.39906091,2073.1,2072.2,1.37450603]
[1773156874139,1.39906091,2073.1,2071.9,1.37450603]
[1773156874735,1.39906091,2072.7,2071.8,0.0042236]
[1773156874940,1.39906091,2072.5,2071.8,0.0042236]
[1773156875643,1.39906091,2072.8,2071.8,1.37872963]
[1773156876845,7.71906091,2073.0,2071.8,1.37872963]
[1773156877047,1.39906091,2072.9,2071.8,1.37872963]
[1773156877736,1.39906091,2072.7,2071.8,1.37872963]
[1773156881141,1.39906091,2072.7,2071.8,0.0042236]
[1773156881344,1.39906091,2072.5,2071.4,1.37450603]
[1773156881739,1.39906091,2072.3,2071.4,1.37450603]
[1773156881943,1.39906091,2072.1,2071.4,1.37450603]
[1773156882251,1.39906091,2072.1,2071.4,1.37984356]
[1773156883546,1.39906091,2072.1,2071.4,0.00533753]
[1773156883944,1.39906091,2072.1,2071.0,1.37450603]
[1773156884245,1.39906091,2071.9,2070.8,1.37450603]
[1773156884447,1.39906091,2071.5,2070.6,1.37450603]
[1773156884651,0.24132,2071.6,2070.4,0.82903952]
[1773156884652,1.39906091,2071.3,2070.4,0.82903952]
[1773156884947,1.39906091,2071.1,2069.9,1.37450603]
[1773156885648,1.39906091,2071.1,2069.6,1.37450603]
[1773156885944,1.39906091,2070.9,2069.6,1.37809555]
[1773156886146,1.39906091,2070.7,2069.6,1.37809555]
[1773156886348,1.39906091,2070.5,2069.6,1.37809555]
[1773156886543,7.72106091,2070.5,2069.6,1.37809555]
[1773156886741,3.90980203,2069.7,2065.2,11.31089931]
[1773156886945,3.90980203,2069.7,2065.1,1.47242532]
[1773156886946,7.9337915,2066.9,2065.1,1.47242532]
[1773156887148,30.31959106,2066.8,2064.5,1.47242532]
[1773156887443,30.31959106,2066.8,2063.3,6.322]
[1773156887444,0.48174591,2065.9,2064.3,41.16546708]
[1773156887648,1.44331096,2065.7,2064.3,0.00419845]
[1773156887849,1.44331096,2065.5,2064.5,1.41275595]
[1773156888044,7.62418342,2065.4,2064.5,1.41275595]
[1773156888244,6.323,2065.5,2064.7,1.41275595]
[1773156888449,0.00548504,2065.9,2064.7,1.41275595]
[1773156888641,1.44331096,2066.4,2064.9,1.41275595]
[1773156888846,13.95302128,2066.3,2064.9,1.41275595]
[1773156889046,6.324,2066.2,2065.1,1.41275595]
[1773156889242,6.324,2066.2,2065.3,5.62008393]
[1773156889646,0.00419642,2066.2,2065.5,5.62008393]
[1773156890143,5.68469228,2066.1,2064.4,5.62008393]
[1773156890650,5.68469228,2065.9,2064.5,40.28760471]
[1773156890945,5.68469228,2065.8,2064.6,5.62008393]
[1773156891148,12.01169228,2065.7,2064.6,5.62008393]
[1773156891348,12.01169228,2065.7,2064.5,40.28760471]
[1773156891349,6.327,2065.6,2064.7,45.90768864]
[1773156891654,6.328,2065.5,2064.7,5.62008393]
[1773156891848,6.328,2065.5,2064.8,40.28760471]
[1773156892047,6.328,2065.5,2064.8,6.95937229]
[1773156892346,12.01269228,2065.5,2064.9,33.32823242]
[1773156892651,5.95634642,2066.2,2064.9,5.73238756]
[1773156892652,6.329,2065.4,2064.9,5.73238756]
[1773156892851,6.329,2065.3,2065.1,5.71914434]
[1773156893052,5.75500001,2065.2,2065.1,5.71914434]
[1773156893255,0.8711878,2066.0,2065.1,5.71914434]
[1773156893454,0.8711878,2065.8,2065.2,30.64671193]
[1773156893655,0.8711878,2065.8,2064.5,6.15473824]
[1773156894058,0.27335782,2065.6,2064.6,29.77552413]
[1773156894355,0.27335782,2065.4,2064.6,29.77552413]
[1773156894551,0.27335782,2065.4,2064.3,0.00419845]
[1773156894751,0.27335782,2065.4,2064.4,29.77552413]
[1773156894952,5.95528,2065.1,2063.6,6.21339753]
[1773156895148,6.331,2065.0,2063.6,6.21339753]
[1773156895348,0.24208,2065.1,2063.7,6.95937229]
[1773156895548,0.242,2065.8,2063.8,6.21339753]
[1773156895748,0.05098011,2065.5,2063.9,6.21339753]
[1773156895953,6.331,2065.4,2064.3,6.14403609]
[1773156896154,6.331,2065.3,2064.3,6.14403609]
[1773156896355,0.18970301,2065.5,2064.5,6.14403609]
[1773156896552,6.332,2065.4,2064.5,6.14403609]
[1773156896752,0.16308705,2066.1,2064.7,6.14403609]
[1773156896953,0.16144385,2065.9,2064.7,6.14403609]
[1773156897163,6.331,2065.8,2064.9,6.14485769]
[1773156897559,0.16144385,2065.8,2065.0,34.79948278]
[1773156897854,6.332,2065.7,2065.0,6.14485769]
[1773156898061,0.00419642,2066.2,2065.2,6.23718254]
[1773156898253,6.332,2066.1,2065.2,6.23718254]
[1773156898458,6.332,2066.1,2065.3,28.65462509]
[1773156898655,6.332,2066.0,2064.9,6.23718254]
[1773156899154,6.332,2065.9,2065.1,6.2383046]
[1773156899357,6.332,2065.8,2065.1,6.2383046]
[1773156899557,6.332,2065.7,2065.3,6.2383046]
[1773156899757,6.332,2065.8,2065.3,6.2383046]
[1773156899957,0.24184,2067.2,2065.5,6.2383046]
[1773156900156,6.332,2067.1,2065.7,6.23258269]
[1773156900355,6.332,2067.0,2065.7,6.23258269]
[1773156900560,6.333,2066.9,2065.9,6.23258269]
[1773156900960,6.33829251,2066.9,2065.9,6.23788583]
[1773156901259,6.19346,2066.4,2065.3,6.23298697]
[1773156901561,10.24809454,2066.9,2065.3,6.23298697]
[1773156901562,6.332,2066.3,2065.3,6.23298697]
[1773156901769,6.332,2066.2,2065.5,6.23298697]
[1773156901968,6.332,2066.1,2065.5,6.23298697]
[1773156902170,6.332,2066.3,2065.7,6.2203195]
[1773156902463,6.32780154,2066.2,2065.7,6.2203195]
[1773156902665,6.332,2066.1,2065.8,34.87074817]
[1773156902867,6.02383226,2066.1,2065.8,6.2203195]
[1773156903265,0.00529251,2066.9,2065.8,6.2203195]
[1773156903266,6.331,2066.0,2065.8,6.2203195]
[1773156903470,6.331,2066.0,2065.9,25.21258665]
[1773156903767,6.331,2066.0,2065.7,25.21258665]
[1773156904165,6.331,2066.0,2065.7,23.61555501]
[1773156904466,6.331,2065.9,2065.7,23.61555501]
[1773156905469,0.22813992,2066.7,2065.7,23.61555501]
[1773156905668,0.22813992,2066.6,2065.7,23.61555501]
[1773156905872,6.55913992,2066.6,2065.7,29.72319516]
[1773156906168,6.52600781,2066.5,2065.7,29.72319516]
[1773156906369,0.19500781,2066.5,2065.7,18.89932516]
[1773156906672,0.19500781,2066.5,2064.6,5.95664]
[1773156906673,0.82531309,2065.9,2064.7,6.19383399]
[1773156906867,7.15631309,2065.8,2064.9,6.19383399]
[1773156907170,0.24197,2066.0,2064.0,0.2422]
[1773156907171,0.88299314,2066.0,2065.1,6.16499396]
[1773156907470,6.33,2065.9,2065.1,6.17103662]
[1773156907772,6.33,2065.8,2065.3,6.16499396]
[1773156908068,0.83832964,2066.6,2065.5,6.15830356]
[1773156908266,3.48092585,2066.7,2065.5,6.15830356]
[1773156908463,3.48092585,2066.7,2065.7,5.62008393]
[1773156908667,6.33,2066.6,2065.7,5.62008393]
[1773156908866,3.89283503,2066.5,2065.8,8.14698965]
[1773156909167,6.33,2066.4,2065.6,5.62008393]
[1773156909469,6.33,2066.3,2065.7,8.14698965]
[1773156909675,0.00529251,2066.9,2065.9,5.62008393]
[1773156909866,0.00529251,2066.9,2065.9,5.86206393]
[1773156910068,4.15155203,2068.0,2066.1,5.62008393]
[1773156910069,6.33,2067.3,2066.1,5.62008393]
[1773156910377,6.33,2067.2,2066.1,5.62008393]
[1773156910667,6.33,2067.1,2066.3,5.62008393]
[1773156910868,4.00716367,2067.7,2066.3,5.62008393]
[1773156911076,6.33,2067.6,2066.5,5.62008393]
[1773156911268,3.94408281,2067.5,2066.5,5.62008393]